bitfinex-derivatives/quotes_BTCF0:USTF0_20251217
["timestamp","ask_amount","ask_price","bid_price","bid_amount"]
[1765980840147,0.66517,87711.0,87710.0,0.67904101]
[1765980840448,0.3352,87711.0,87710.0,0.67904101]
[1765980840752,0.66517,87711.0,87710.0,0.00117101]
[1765980841150,0.66517,87691.0,87690.0,0.03030063]
[1765980841341,0.66517,87687.0,87686.0,0.03030063]
[1765980841655,0.66517,87686.0,87685.0,0.75762863]
[1765980841845,0.66517,87686.0,87685.0,1.056358]
[1765980841846,0.3352,87686.0,87685.0,1.056358]
[1765980842050,0.17428,87696.0,87685.0,1.056358]
[1765980842051,0.83945,87696.0,87695.0,0.67787]
[1765980842241,0.66517,87696.0,87695.0,0.67787]
[1765980842440,0.3608,87697.0,87696.0,0.8866166]
[1765980842653,0.17445101,87704.0,87703.0,0.6892757]
[1765980842654,0.83962101,87704.0,87703.0,0.6892757]
[1765980843350,0.66534101,87704.0,87703.0,0.6892757]
[1765980844144,0.87832101,87704.0,87703.0,0.6892757]
[1765980844339,0.96734729,87704.0,87703.0,0.67787]
[1765980844539,0.66953,87697.0,87696.0,0.6987366]
[1765980846155,0.66953,87697.0,87696.0,0.6997366]
[1765980846746,0.66953,87697.0,87696.0,0.7007366]
[1765980851060,0.66953,87697.0,87696.0,0.71796]
[1765980851352,0.66953,87697.0,87696.0,0.002]
[1765980851554,0.6809365,87697.0,87696.0,0.002]
[1765980852756,0.6809365,87697.0,87696.0,0.001]
[1765980852952,0.6809365,87697.0,87695.0,0.00017101]
[1765980853153,0.6918,87679.0,87678.0,0.71937739]
[1765980853360,0.6918,87679.0,87678.0,1.07736]
[1765980854458,0.6918,87679.0,87678.0,1.089769]
[1765980857260,0.7032092,87676.0,87671.0,0.00013692]
[1765980857457,0.6918,87671.0,87670.0,0.00017101]
[1765980857645,0.6918,87652.0,87651.0,0.03033739]
[1765980857849,0.13485,87654.0,87640.0,0.21211]
[1765980857850,0.6918,87648.0,87645.0,0.0114133]
[1765980858045,0.6918,87646.0,87645.0,0.3705333]
[1765980858553,0.69193608,87646.0,87645.0,0.3705333]
[1765980858957,0.69193608,87646.0,87645.0,0.7004533]
[1765980859953,0.69193608,87646.0,87645.0,0.7044533]
[1765980860155,0.00013608,87646.0,87645.0,0.7044533]
[1765980867956,0.69193608,87646.0,87645.0,0.7044533]
[1765980868767,0.00013608,87646.0,87645.0,0.7044533]
[1765980871668,0.34081608,87646.0,87645.0,0.7044533]
[1765980871966,0.69193608,87646.0,87645.0,0.7044533]
[1765980874563,0.00013608,87646.0,87645.0,0.7044533]
[1765980876066,0.35585608,87646.0,87645.0,0.7044533]
[1765980876277,0.70014608,87646.0,87645.0,0.7044533]
[1765980879773,0.70014608,87646.0,87645.0,0.0154133]
[1765980879978,0.70014608,87646.0,87645.0,0.004]
[1765980880276,0.70014608,87646.0,87637.0,0.00017111]
[1765980880277,0.7114242,87638.0,87637.0,0.00017111]
[1765980880474,0.70001,87638.0,87637.0,0.70893541]
[1765980881173,0.70001,87638.0,87637.0,0.34509111]
[1765980881371,0.70001,87638.0,87637.0,0.00017111]
[1765980881676,0.70001,87638.0,87637.0,0.00317111]
[1765980882375,0.70001,87638.0,87637.0,0.00617111]
[1765980885281,1.06081,87638.0,87637.0,0.00617111]
[1765980885480,1.06081,87638.0,87637.0,0.01758541]
[1765980887571,1.06081,87638.0,87637.0,0.00617111]
[1765980888472,1.06081,87638.0,87637.0,0.01758541]
[1765980889270,1.06081,87638.0,87637.0,0.36250541]
[1765980889679,1.06081,87638.0,87637.0,0.71493541]
[1765980889870,1.06081,87638.0,87637.0,0.00617111]
[1765980890476,1.06081,87638.0,87637.0,0.35109111]
[1765980890677,1.06081,87638.0,87637.0,0.00617111]
[1765980891886,1.06081,87638.0,87637.0,0.01758541]
[1765980892384,0.70001,87638.0,87637.0,0.01758541]
[1765980892787,0.70001,87638.0,87637.0,0.71493541]
[1765980900589,0.70014608,87646.0,87645.0,0.7087633]
[1765980901491,0.00013608,87646.0,87645.0,0.73916328]
[1765980901679,0.00013608,87646.0,87645.0,0.7097633]
[1765980901881,0.70018111,87654.0,87653.0,0.7087622]
[1765980902086,0.00017111,87654.0,87653.0,1.0695622]
[1765980902291,1.00469181,87672.0,87671.0,0.69735]
[1765980902591,0.79123181,87672.0,87671.0,0.69735]
[1765980902781,0.70001,87672.0,87671.0,0.69735]
[1765980902979,0.70001,87672.0,87669.0,0.0114101]
[1765980902980,0.70001,87684.0,87683.0,0.7087583]
[1765980903193,1.06081,87691.0,87690.0,0.7087574]
[1765980903385,0.70001,87691.0,87690.0,0.7087574]
[1765980903586,0.00017111,87692.0,87683.0,0.0114083]
[1765980903587,0.70001,87684.0,87683.0,0.73913871]
[1765980903889,0.91347,87680.0,87679.0,0.7276488]
[1765980904086,0.70001,87688.0,87687.0,0.3563278]
[1765980904286,0.00017111,87692.0,87691.0,0.7087573]
[1765980904287,0.35589111,87692.0,87691.0,0.7087573]
[1765980904482,0.70018111,87692.0,87691.0,0.7087573]
[1765980906510,0.70318111,87692.0,87691.0,0.7087573]
[1765980907704,0.70318111,87692.0,87691.0,0.3563273]
[1765980907900,0.70318111,87692.0,87691.0,0.6882373]
[1765980908092,0.35889111,87692.0,87691.0,0.6882373]
[1765980908298,0.00317111,87692.0,87691.0,0.6882373]
[1765980908805,0.3608,87708.0,87697.0,0.6977565]
[1765980909109,0.89481,87688.0,87687.0,0.35031]
[1765980909310,0.89481,87696.0,87695.0,0.6977568]
[1765980909499,0.69127,87696.0,87695.0,0.6977568]
[1765980909702,0.35293,87696.0,87695.0,0.6977568]
[1765980909900,0.69144111,87704.0,87703.0,0.6977557]
[1765980910107,0.89498111,87704.0,87703.0,0.68635]
[1765980910293,0.69327,87698.0,87697.0,0.35031]
[1765980910812,0.89681,87696.0,87695.0,0.68652111]
[1765980911111,0.89681,87696.0,87695.0,0.00017111]
[1765980911294,0.69127,87682.0,87681.0,0.3608]
[1765980911497,0.69127,87682.0,87670.0,0.18246982]
[1765980911498,0.69127,87677.0,87676.0,1.14051]
[1765980911706,0.69127,87677.0,87676.0,0.68635]
[1765980912505,0.69127,87677.0,87676.0,0.35031]
[1765980912707,0.69127,87674.0,87673.0,0.3617195]
[1765980912908,0.69127,87674.0,87673.0,0.6977595]
[1765980913912,0.69127,87674.0,87673.0,0.6987595]
[1765980914113,0.69127,87674.0,87673.0,0.6997595]
[1765980914298,0.69127,87674.0,87673.0,0.002]
[1765980914909,0.69127,87674.0,87673.0,0.68835]
[1765980918913,0.69127,87674.0,87673.0,0.002]
[1765980920918,0.69227,87674.0,87673.0,0.001]
[1765980921307,0.69127,87669.0,87668.0,0.68652111]
[1765980921618,0.69127,87669.0,87668.0,0.35048111]
[1765980922309,0.69127,87669.0,87668.0,0.69793141]
[1765980922919,0.78400987,87669.0,87668.0,0.69793141]
[1765980924520,0.69127,87669.0,87668.0,0.69793141]
[1765980924722,0.69127,87669.0,87668.0,0.89051141]
[1765980925018,0.69127,87669.0,87668.0,0.69793141]
[1765980927212,1.28342318,87680.0,87679.0,0.68635]
[1765980927418,0.69127,87670.0,87669.0,1.04715]
[1765980928914,0.69127,87670.0,87669.0,0.35131]
[1765980929318,0.69127,87670.0,87669.0,0.001]
[1765980929822,0.69127,87670.0,87669.0,0.002]
[1765980930327,0.69127,87670.0,87669.0,0.6997601]
[1765980930516,0.69127,87670.0,87669.0,0.6987601]
[1765980930822,0.69227,87670.0,87669.0,0.6977601]
[1765980931426,0.69127,87670.0,87669.0,0.6977601]
[1765980933218,0.69127,87670.0,87669.0,1.0585601]
[1765980933922,1.25561,87680.0,87679.0,0.6977588]
[1765980934226,0.69127,87680.0,87679.0,0.6977588]
[1765980936023,0.70675111,87685.0,87684.0,0.6909382]
[1765980936424,0.70675111,87685.0,87684.0,0.3590282]
[1765980936629,0.70675111,87685.0,87684.0,0.0114082]
[1765980937036,0.20882,87682.0,87681.0,0.34762]
[1765980937229,0.7179887,87680.0,87679.0,0.34862]
[1765980937540,1.0787887,87680.0,87679.0,0.001]
[1765980937729,1.0787887,87680.0,87679.0,0.68053]
[1765980937730,1.06738,87680.0,87679.0,0.68053]
[1765980938036,0.70658,87680.0,87679.0,0.68053]
[1765980938536,0.70858,87680.0,87679.0,0.68053]
[1765980938734,0.70858,87680.0,87679.0,0.67953]
[1765980939438,0.70858,87680.0,87679.0,0.68053]
[1765980939935,0.70658,87680.0,87679.0,0.68053]
[1765980940333,0.00017111,87685.0,87684.0,0.6909382]
[1765980940531,0.70658,87709.0,87708.0,0.690935]
[1765980941140,0.70658,87709.0,87708.0,0.67953]
[1765980941624,0.79945107,87709.0,87708.0,0.67953]
[1765980942236,0.70658,87709.0,87708.0,0.67953]
[1765980943622,0.70958,87709.0,87708.0,0.67953]
[1765980944126,0.71258,87709.0,87708.0,0.67953]
[1765980951034,0.70658,87704.0,87703.0,0.3608]
[1765980951328,0.70658,87701.0,87700.0,1.07487712]
[1765980951731,0.71258,87709.0,87708.0,0.6909351]
[1765980952136,0.70958,87709.0,87708.0,0.6909351]
[1765980952342,0.70658,87709.0,87708.0,0.67953]
[1765980952735,0.70658,87704.0,87703.0,1.39517]
[1765980952934,0.70658,87704.0,87703.0,0.67953]
[1765980953138,0.70658,87701.0,87700.0,0.34779102]
[1765980953342,0.70658,87701.0,87700.0,1.06343102]
[1765980954244,0.70658,87701.0,87700.0,1.39534102]
[1765980955852,0.70858,87701.0,87700.0,1.39534102]
[1765980956349,0.71058,87701.0,87700.0,1.39534102]
[1765980957138,0.71058,87701.0,87700.0,0.00017102]
[1765980959944,0.71058,87701.0,87700.0,0.69110712]
[1765980960342,0.721986,87701.0,87700.0,0.00017102]
[1765980961650,0.71058,87701.0,87700.0,0.01157712]
[1765980962563,0.71058,87701.0,87700.0,0.69110712]
[1765980962746,0.561,87731.0,87716.0,0.690934]
[1765980962941,0.7179823,87730.0,87729.0,0.67953]
[1765980963255,0.70658,87730.0,87729.0,1.04033]
[1765980963447,0.70885953,87738.0,87737.0,0.67953]
[1765980963648,0.70885953,87738.0,87737.0,0.6909313]
[1765980964454,0.35191953,87738.0,87737.0,0.6909313]
[1765980965155,0.00227953,87738.0,87737.0,0.6909313]
[1765980966047,0.36189953,87738.0,87737.0,0.6909313]
[1765980966243,0.36189953,87738.0,87737.0,0.6929313]
[1765980966752,0.36189953,87738.0,87737.0,0.68153]
[1765980967562,0.00227953,87738.0,87737.0,0.68153]
[1765980967945,0.70788953,87738.0,87737.0,0.68153]
[1765980969449,0.00227953,87738.0,87737.0,1.04133]
[1765980969758,0.3608,87745.0,87744.0,0.89775]
[1765980969945,0.69764,87745.0,87744.0,0.89775]
[1765980970145,0.67793,87745.0,87744.0,0.89775]
[1765980970345,0.00017102,87746.0,87744.0,0.5578]
[1765980970554,0.00017102,87746.0,87745.0,0.7036503]
[1765980971753,0.00017102,87746.0,87745.0,1.0644503]
[1765980972458,0.00017102,87746.0,87745.0,1.7798503]
[1765980973154,0.67793,87759.0,87758.0,0.69225]
[1765980974462,0.77039578,87759.0,87758.0,0.69225]
[1765980975050,0.77239578,87759.0,87758.0,0.69225]
[1765980975252,0.77239578,87759.0,87758.0,0.33995]
[1765980975452,0.77239578,87759.0,87758.0,0.7036486]
[1765980975860,0.77239578,87759.0,87758.0,0.69225]
[1765980977468,0.67793,87753.0,87752.0,0.89775]
[1765980978057,0.67793,87751.0,87750.0,0.00017102]
[1765980978264,0.67793,87751.0,87750.0,0.34012102]
[1765980978452,0.67793,87751.0,87750.0,0.00017102]
[1765980979263,0.67893,87751.0,87750.0,0.00017102]
[1765980979662,0.67893,87751.0,87750.0,0.70382062]
[1765980980060,0.001,87751.0,87750.0,0.70382062]
[1765980980564,0.67793,87766.0,87765.0,0.7036476]
[1765980981858,0.68093,87766.0,87765.0,0.7036476]
[1765980982061,0.68293,87766.0,87765.0,0.69225]
[1765980982260,0.67793,87761.0,87760.0,0.69225]
[1765980982463,0.67793,87758.0,87757.0,0.3608]
[1765980982660,0.67793,87758.0,87757.0,0.71524]
[1765980983064,0.67793,87758.0,87752.0,0.2055]
[1765980983065,0.67793,87753.0,87752.0,0.9091493]
[1765980984066,0.33684,87753.0,87752.0,0.9091493]
[1765980984266,0.67993,87761.0,87760.0,0.89775]
[1765980984472,0.002,87761.0,87760.0,0.89775]
[1765980985170,0.76731827,87767.0,87766.0,0.7036475]
[1765980986169,0.00017062,87767.0,87766.0,0.7036475]
[1765980986373,0.67810062,87767.0,87766.0,0.7036475]
[1765980986869,0.68110062,87767.0,87766.0,0.7036475]
[1765980987265,0.00317062,87767.0,87766.0,0.7036475]
[1765980987655,0.00271062,87767.0,87766.0,0.7036475]
[1765980988673,0.68020849,87778.0,87777.0,0.7036461]
[1765980989172,0.68020849,87778.0,87777.0,0.69225]
[1765980989367,0.33911849,87778.0,87777.0,0.69225]
[1765980989574,0.68020849,87778.0,87777.0,0.69225]
[1765980989958,0.68020849,87778.0,87777.0,0.7036461]
[1765980990359,0.68020849,87778.0,87777.0,0.69225]
[1765980990570,0.68020849,87778.0,87777.0,0.7036461]
[1765980991567,0.68320849,87778.0,87777.0,0.7036461]
[1765980991767,0.68520849,87778.0,87777.0,0.7036461]
[1765980992373,0.00727849,87778.0,87777.0,0.7036461]
[1765980994473,0.34411849,87778.0,87777.0,0.69225]
[1765980994675,0.00727849,87778.0,87777.0,0.69225]
[1765980998566,0.3608,87787.0,87786.0,0.6936549]
[1765980998768,0.67933,87796.0,87795.0,0.6936538]
[1765980999367,0.67933,87796.0,87787.0,0.00017091]
[1765980999368,0.3608,87796.0,87787.0,0.00017091]
[1765980999570,1.04013,87788.0,87787.0,0.00017091]
[1765981000871,1.04313,87788.0,87787.0,0.00017091]
[1765981001983,1.04613,87788.0,87787.0,0.00017091]
[1765981004885,1.04613,87788.0,87787.0,0.68243091]
[1765981006283,1.04613,87788.0,87787.0,0.33391091]
[1765981006782,0.67933,87767.0,87766.0,0.3608]
[1765981006981,0.67933,87750.0,87749.0,0.0113997]
[1765981007284,1.04013,87750.0,87749.0,0.68226]
[1765981008776,1.0515296,87750.0,87749.0,0.68226]
[1765981009079,1.0515296,87750.0,87745.0,0.33374]
[1765981009080,0.6907301,87746.0,87745.0,0.33374]
[1765981009473,0.3608,87750.0,87741.0,0.33391091]
[1765981009474,0.67933,87742.0,87741.0,0.33391091]
[1765981009674,1.04013,87742.0,87741.0,0.68243091]
[1765981010481,0.3608,87750.0,87749.0,0.6936597]
[1765981011583,0.34295056,87758.0,87757.0,0.6936587]
[1765981012286,0.67950056,87758.0,87757.0,0.68226]
[1765981012676,0.67950056,87758.0,87757.0,0.68326]
[1765981013279,0.67950056,87758.0,87757.0,0.68226]
[1765981013481,0.67950056,87758.0,87757.0,0.68426]
[1765981014590,0.00017056,87758.0,87757.0,0.68426]
[1765981014887,0.67950056,87758.0,87757.0,0.68426]
[1765981015475,0.00017056,87758.0,87757.0,0.68426]
[1765981017179,0.3608,87766.0,87765.0,0.68226]
[1765981017389,0.3608,87766.0,87765.0,0.6936577]
[1765981020480,0.67933,87753.0,87752.0,0.8939993]
[1765981020687,0.67933,87753.0,87752.0,0.8826]
[1765981020892,0.67933,87753.0,87752.0,0.68226]
[1765981021189,0.67933,87753.0,87744.0,0.94567632]
[1765981021190,0.67933,87745.0,87744.0,0.8826]
[1765981021386,1.04013,87745.0,87744.0,0.33374]
[1765981021587,1.04013,87745.0,87744.0,0.68226]
[1765981021981,0.70358,87745.0,87744.0,0.68226]
[1765981022181,0.3608,87745.0,87744.0,0.68226]
[1765981022392,0.3608,87745.0,87744.0,0.68426]
[1765981022783,0.3608,87745.0,87744.0,0.68526]
[1765981022979,0.3608,87745.0,87744.0,0.68326]
[1765981023185,0.3608,87745.0,87744.0,0.68426]
[1765981023794,0.70358,87745.0,87744.0,0.68426]
[1765981023993,1.04013,87745.0,87744.0,0.68426]
[1765981024992,1.04013,87745.0,87744.0,0.002]
[1765981025192,1.04013,87745.0,87744.0,0.003]
[1765981025389,1.04013,87745.0,87744.0,0.002]
[1765981025786,0.68194,87742.0,87741.0,0.00017091]
[1765981026188,1.04274,87742.0,87741.0,0.00017091]
[1765981027083,1.04274,87742.0,87741.0,0.00117091]
[1765981029997,1.04274,87742.0,87741.0,0.35147091]
[1765981030194,1.04274,87742.0,87741.0,0.69659091]
[1765981031187,0.3608,87742.0,87741.0,0.69659091]
[1765981032398,1.04274,87742.0,87741.0,0.69659091]
[1765981032794,1.04274,87742.0,87741.0,0.00117091]
[1765981033198,0.68194,87739.0,87738.0,0.00227953]
[1765981033399,1.04274,87739.0,87738.0,0.00227953]
[1765981033599,1.75782,87739.0,87738.0,0.00227953]
[1765981035088,1.04274,87739.0,87738.0,0.70910073]
[1765981035293,0.00017091,87747.0,87746.0,0.7068201]
[1765981035497,0.17854619,87770.0,87759.0,0.88146]
[1765981035498,0.35144,87760.0,87759.0,0.88146]
[1765981035799,0.68194,87759.0,87758.0,0.0113985]
[1765981035996,0.68194,87759.0,87758.0,0.3616985]
[1765981036198,0.68194,87759.0,87758.0,0.7068185]
[1765981037805,1.04518,87768.0,87767.0,0.67457]
[1765981038300,1.04518,87768.0,87759.0,0.1997]
[1765981038301,0.68438,87783.0,87782.0,0.6859654]
[1765981038500,0.34817,87783.0,87782.0,0.6859654]
[1765981038709,0.68438,87788.0,87787.0,0.6859648]
[1765981039000,0.68438,87788.0,87787.0,0.67457]
[1765981041398,0.34817,87778.0,87777.0,0.8856661]
[1765981042205,0.68838,87788.0,87787.0,0.6859648]
[1765981042606,0.68838,87788.0,87787.0,0.67457]
[1765981042806,0.68638,87788.0,87787.0,0.67457]
[1765981043001,0.68438,87788.0,87787.0,0.67457]
[1765981043206,0.68438,87782.0,87781.0,0.6859656]
[1765981043505,0.3608,87790.0,87777.0,0.011396]
[1765981043506,0.34817,87778.0,87777.0,0.011396]
[1765981043704,0.68438,87775.0,87770.0,0.62368]
[1765981043906,0.68438,87775.0,87760.0,0.3721983]
[1765981044104,0.68438,87775.0,87774.0,9.1e-07]
[1765981044499,0.68438,87753.0,87752.0,0.6859693]
[1765981044701,0.19784,87768.0,87749.0,0.3608]
[1765981044702,0.68438,87750.0,87749.0,0.3608]
[1765981045013,0.34817,87756.0,87755.0,0.6859689]
[1765981045597,0.68455091,87764.0,87763.0,0.6859679]
[1765981046596,0.68455091,87764.0,87763.0,0.6869679]
[1765981047311,0.00017091,87764.0,87763.0,0.6869679]
[1765981047509,0.68455091,87764.0,87763.0,0.6869679]
[1765981047714,0.68455091,87764.0,87763.0,0.6879679]
[1765981048303,0.68455091,87764.0,87763.0,0.67657]
[1765981049010,0.34834091,87764.0,87763.0,0.67657]
[1765981049212,0.34834091,87764.0,87763.0,1.03737]
[1765981049213,0.00017091,87764.0,87763.0,1.03737]
[1765981049612,0.68438,87777.0,87776.0,0.67457]
[1765981050411,1.04518,87785.0,87784.0,0.67457]
[1765981052215,1.04718,87785.0,87784.0,0.67457]
[1765981052917,1.04918,87785.0,87784.0,0.67457]
[1765981053502,0.68838,87785.0,87784.0,0.67457]
[1765981053814,0.68438,87778.0,87777.0,0.67457]
[1765981054520,0.70909,87785.0,87784.0,0.7021352]
[1765981054716,0.71699,87785.0,87784.0,0.69074]
[1765981055420,0.71699,87785.0,87780.0,0.7073856]
[1765981055421,0.71299,87781.0,87780.0,0.7073856]
[1765981056518,0.35607,87781.0,87780.0,0.7073856]
[1765981057012,0.35707,87781.0,87780.0,0.7073856]
[1765981057218,0.001,87781.0,87780.0,0.7073856]
[1765981057921,0.002,87781.0,87780.0,0.7073856]
[1765981058822,0.35807,87781.0,87780.0,0.7073856]
[1765981059723,0.002,87781.0,87780.0,0.7073856]
[1765981061114,0.35807,87781.0,87780.0,0.7073856]
[1765981061720,0.35807,87781.0,87780.0,1.0681856]
[1765981062219,0.002,87781.0,87780.0,1.0681856]
[1765981062621,0.002,87781.0,87780.0,0.7073856]
[1765981063423,0.35807,87781.0,87780.0,0.7073856]
[1765981063624,0.002,87781.0,87780.0,0.7073856]
[1765981063820,0.3608,87792.0,87791.0,0.7073843]
[1765981064413,1.07379,87792.0,87791.0,0.7073843]
[1765981065032,0.71599,87792.0,87791.0,0.7073843]
[1765981065319,0.35907,87792.0,87791.0,0.7073843]
[1765981065820,0.003,87792.0,87791.0,0.7073843]
[1765981066022,0.06150502,87816.0,87801.0,0.707383]
[1765981066323,0.35607,87802.0,87801.0,0.7073829]
[1765981066524,0.71299,87802.0,87801.0,0.69599]
[1765981066921,0.7243829,87802.0,87801.0,0.69599]
[1765981067116,0.71299,87789.0,87788.0,1.41079]
[1765981067314,0.7243845,87789.0,87788.0,1.41079]
[1765981067634,0.71299,87785.0,87784.0,0.34707]
[1765981067818,0.71299,87785.0,87784.0,1.06187]
[1765981069426,0.71299,87794.0,87793.0,0.69599]
[1765981072123,0.71299,87790.0,87789.0,0.34707]
[1765981072631,0.71299,87790.0,87789.0,0.69599]
[1765981073425,0.71399,87790.0,87789.0,0.69599]
[1765981075136,0.35707,87790.0,87789.0,0.69599]
[1765981075316,0.001,87790.0,87789.0,0.69599]
[1765981075520,0.3608,87806.0,87787.0,0.0113948]
[1765981075521,0.0113926,87804.0,87803.0,0.69599]
[1765981075827,0.71299,87804.0,87803.0,0.69599]
[1765981076526,0.742162,87807.0,87806.0,0.69599]
[1765981076729,0.71299,87807.0,87806.0,0.69599]
[1765981077521,1.0851813,87815.0,87814.0,0.69599]
[1765981078030,1.0851813,87815.0,87814.0,0.64599]
[1765981078230,0.71299,87809.0,87808.0,0.707382]
[1765981078429,0.35607,87809.0,87808.0,0.707382]
[1765981078632,0.71299,87809.0,87808.0,0.707382]
[1765981078931,0.71299,87809.0,87808.0,0.69599]
[1765981079930,0.71499,87809.0,87808.0,0.69599]
[1765981080632,0.71699,87809.0,87808.0,0.69599]
[1765981081328,0.71699,87809.0,87808.0,0.89833]
[1765981081524,0.36007,87809.0,87808.0,0.89833]
[1765981082129,0.71699,87809.0,87808.0,0.89833]
[1765981082334,0.71699,87809.0,87808.0,0.69599]
[1765981082530,0.71699,87809.0,87808.0,0.89833]
[1765981083033,0.004,87809.0,87808.0,0.89833]
[1765981083429,0.002829,87809.0,87808.0,0.89833]
[1765981083625,0.00227745,87818.0,87817.0,0.69599]
[1765981083834,0.3608,87832.0,87831.0,0.34707]
[1765981084040,0.71299,87832.0,87831.0,0.69599]
[1765981084228,0.71299,87832.0,87831.0,0.7073791]
[1765981084436,0.35607,87832.0,87831.0,0.7073791]
[1765981084624,0.3608,87833.0,87832.0,0.88349]
[1765981084824,0.702,87833.0,87832.0,0.88349]
[1765981085037,1.02662,87833.0,87832.0,0.88349]
[1765981085526,1.02662,87844.0,87843.0,0.68721]
[1765981085728,0.3608,87844.0,87843.0,0.68721]
[1765981085933,1.02662,87856.0,87855.0,0.34855]
[1765981086234,1.02662,87856.0,87855.0,0.68721]
[1765981086422,0.3412,87856.0,87855.0,0.68721]
[1765981086628,0.3412,87856.0,87851.0,0.33866]
[1765981086629,0.34347641,87858.0,87857.0,0.68721]
[1765981086820,0.34347641,87858.0,87857.0,1.40193]
[1765981087422,1.00929641,87858.0,87857.0,1.40189]
[1765981087733,0.66809641,87858.0,87857.0,1.40189]
[1765981087927,0.66809641,87858.0,87857.0,1.40389]
[1765981088733,0.00227641,87858.0,87857.0,1.40389]
[1765981089539,0.00227641,87858.0,87857.0,1.40589]
[1765981089929,0.00227641,87858.0,87857.0,1.40389]
[1765981090138,0.69754641,87858.0,87857.0,1.40689]
[1765981090332,0.69754641,87858.0,87857.0,0.69221]
[1765981090530,0.69754641,87858.0,87857.0,1.40681]
[1765981090731,0.69754641,87858.0,87857.0,0.69021]
[1765981090934,0.69754641,87858.0,87857.0,1.40581]
[1765981091528,0.69754641,87858.0,87857.0,1.40481]
[1765981091731,0.69754641,87858.0,87857.0,1.40681]
[1765981092132,0.69754641,87858.0,87857.0,1.4181957]
[1765981092332,0.34538641,87858.0,87857.0,1.4181957]
[1765981092733,0.34538641,87858.0,87857.0,0.7025957]
[1765981092933,0.00227641,87858.0,87857.0,1.4171157]
[1765981093633,0.35443641,87858.0,87857.0,1.4161157]
[1765981093834,3.9132836,87860.0,87859.0,0.65728]
[1765981094039,3.9132836,87860.0,87859.0,1.01808]
[1765981094242,3.89875543,87860.0,87859.0,1.01808]
[1765981094442,3.63562345,87860.0,87859.0,1.41808]
[1765981094646,3.62548113,87860.0,87859.0,1.41808]
[1765981095834,3.52548113,87860.0,87859.0,1.41808]
[1765981096040,3.52548113,87860.0,87859.0,1.01808]
[1765981096544,3.52548113,87860.0,87859.0,1.7366]
[1765981101450,3.52548113,87860.0,87859.0,1.02208]
[1765981101750,3.52548113,87860.0,87859.0,1.7364]
[1765981104450,3.52548113,87860.0,87859.0,1.7477855]
[1765981107241,2.18460766,87860.0,87859.0,1.7477855]
[1765981107555,2.08460766,87860.0,87859.0,1.7477855]
[1765981107941,1.41948246,87860.0,87859.0,2.1477855]
[1765981108246,6e-08,87860.0,87859.0,2.1477855]
[1765981108550,0.09078886,87905.0,87859.0,2.1477855]
[1765981108551,0.20768,87894.0,87893.0,0.0113811]
[1765981108850,0.90295,87894.0,87893.0,0.71448]
[1765981109242,0.69527,87886.0,87885.0,0.0001707]
[1765981110160,0.69527,87886.0,87885.0,7e-07]
[1765981110353,0.219061,87894.0,87893.0,0.00034]
[1765981110354,0.20768,87894.0,87893.0,0.00034]
[1765981110553,0.20768,87894.0,87893.0,0.71478]
[1765981110746,0.90295,87894.0,87893.0,0.71478]
[1765981111255,0.20768,87894.0,87893.0,0.71478]
[1765981112759,0.20768,87894.0,87893.0,0.71678]
[1765981112952,0.20768,87894.0,87893.0,0.004]
[1765981112953,0.90295,87894.0,87893.0,0.004]
[1765981113259,0.90295,87894.0,87893.0,0.4648]
[1765981113562,0.90295,87894.0,87893.0,0.4765211]
[1765981114249,0.90295,87894.0,87893.0,0.4745211]
[1765981114449,0.90295,87894.0,87893.0,0.46514]
[1765981115054,1.26375,87894.0,87893.0,0.002]
[1765981115354,0.011382,87886.0,87885.0,7e-07]
[1765981115956,0.011382,87886.0,87885.0,0.0117228]
[1765981115957,0.3608,87886.0,87885.0,0.0117228]
[1765981116143,0.20768,87894.0,87893.0,0.0117211]
[1765981116456,0.20768,87894.0,87893.0,0.0157211]
[1765981116653,0.20768,87894.0,87893.0,0.3765211]
[1765981117047,0.88324,87894.0,87893.0,0.3745211]
[1765981117660,0.88324,87894.0,87893.0,0.3741811]
[1765981118251,0.88324,87894.0,87893.0,0.3721811]
[1765981118459,0.88324,87894.0,87893.0,0.3753511]
[1765981118759,0.88324,87894.0,87893.0,0.3775211]
[1765981118955,0.54951,87894.0,87893.0,0.3775211]
[1765981119657,0.88324,87894.0,87893.0,0.3775211]
[1765981120365,0.20768,87894.0,87893.0,0.3775211]
[1765981120949,0.88324,87894.0,87893.0,0.3771811]
[1765981121254,0.88324,87894.0,87893.0,0.0165511]
[1765981121457,0.88324,87894.0,87890.0,0.19972]
[1765981121458,0.011382,87886.0,87885.0,7e-07]
[1765981121759,0.372182,87886.0,87885.0,7e-07]
[1765981121952,0.67556,87857.0,87856.0,0.03001136]
[1765981122259,0.20061,87858.0,87842.0,0.01034]
[1765981122260,0.67556,87843.0,87842.0,0.01034]
[1765981122456,0.54244,87849.0,87848.0,0.01034]
[1765981122651,0.87617,87849.0,87846.0,0.0113871]
[1765981122858,0.67556,87847.0,87846.0,0.0165571]
[1765981123156,0.20061,87849.0,87848.0,0.01034]
[1765981123357,0.20061,87849.0,87848.0,0.37114]
[1765981123659,0.87617,87849.0,87848.0,0.37214]
[1765981124159,0.87617,87849.0,87848.0,0.37114]
[1765981124660,0.20061,87849.0,87848.0,0.37114]
[1765981125263,0.00017002,87856.0,87855.0,0.021726]
[1765981125758,0.34200002,87856.0,87855.0,0.021726]
[1765981126066,0.67573002,87856.0,87855.0,0.04671731]
[1765981126456,0.67573002,87856.0,87855.0,0.016556]
[1765981126959,0.67573002,87856.0,87855.0,0.001]
[1765981127456,0.67573002,87856.0,87855.0,0.002]
[1765981128053,0.67573002,87856.0,87855.0,0.001]
[1765981128252,0.67556,87845.0,87844.0,0.0113874]
[1765981128760,0.20061,87846.0,87841.0,0.0113878]
[1765981128959,0.67556,87842.0,87841.0,0.0113878]
[1765981129149,0.67556,87840.0,87839.0,0.0001707]
[1765981130768,0.20061,87846.0,87839.0,0.0001707]
[1765981130952,0.54244,87846.0,87845.0,0.7078773]
[1765981131467,0.70263,87854.0,87853.0,0.7078762]
[1765981131761,1.03636,87854.0,87853.0,0.0113862]
[1765981132758,0.67556,87845.0,87844.0,0.12800176]